bitfinex/quotes_ETHUSD_20220106
["timestamp","ask_amount","ask_price","bid_price","bid_amount"]
[1641438902842,6.17,3499.4,3499.0,0.345]
[1641438903138,6.17,3499.4,3499.1,1.72037568]
[1641438903341,6.17,3499.4,3499.2,1.6824859]
[1641438903542,6.17,3499.4,3499.2,1.7904859]
[1641438903740,6.17,3499.4,3499.2,2.6824859]
[1641438905448,6.17,3499.4,3499.1,0.00113685]
[1641438905845,6.17,3499.4,3498.7,0.645]
[1641438906046,6.17,3499.4,3498.8,0.00284212]
[1641438907094,3.9699,3499.3,3498.8,0.00284212]
[1641438907293,3.9699,3499.3,3498.4,0.00511581]
[1641438907491,3.9699,3499.3,3498.3,0.00568423]
[1641438907897,1.12517537,3498.9,3498.3,0.00568423]
[1641438909298,0.15526302,3498.6,3498.3,0.30568423]
[1641438909597,0.15526302,3498.6,3498.4,0.00511581]
[1641438909996,0.15526302,3498.6,3498.2,0.2082]
[1641438909997,0.15526302,3498.6,3498.3,0.00568423]
[1641438911042,0.15526302,3498.6,3498.3,0.30568423]
[1641438911444,0.15526302,3498.6,3498.4,0.00511581]
[1641438912346,0.15526302,3498.6,3498.3,0.00568423]
[1641438912945,2.74852536,3498.6,3498.3,0.00568423]
[1641438914091,2.614343,3498.6,3498.3,0.00568423]
[1641438914292,2.45907998,3498.6,3498.3,0.00568423]
[1641438914494,1.38850418,3498.1,3497.5,0.01023162]
[1641438915898,0.15526302,3498.4,3497.5,0.58191912]
[1641438916295,0.15526302,3498.4,3497.6,0.0096632]
[1641438916694,0.15526302,3498.4,3497.5,0.01023162]
[1641438917096,0.88277463,3498.4,3497.5,0.01023162]
[1641438917295,3.9097,3498.3,3497.3,0.01136847]
[1641438917495,3.9097,3498.3,3497.1,0.01250532]
[1641438918345,0.71474,3498.2,3497.1,0.01250532]
[1641438919051,1.23611602,3497.5,3497.1,0.01250532]
[1641438919547,1.23611602,3497.5,3496.3,1.774]
[1641438919548,1.23611602,3497.5,3497.0,0.01307374]
[1641438919948,0.15526302,3497.2,3496.7,0.58659491]
[1641438920249,0.15526302,3497.2,3496.8,0.01421059]
[1641438920854,0.15526302,3497.2,3496.6,0.01534743]
[1641438921252,0.15526302,3497.2,3496.8,1.1434922]
[1641438921698,0.15526302,3497.2,3496.9,0.01364216]
[1641438924007,0.15526302,3497.2,3496.9,0.31364216]
[1641438924408,0.15526302,3497.2,3497.0,0.01307374]
[1641438924809,10.6372,3498.2,3497.0,0.01307374]
[1641438925010,1.46542464,3497.9,3497.1,2.02456876]
[1641438925238,1.46542464,3497.9,3497.1,0.57176]
[1641438925239,0.15526302,3497.6,3497.1,0.57176]
[1641438925438,0.15526302,3497.6,3497.2,0.01193689]
[1641438925840,0.15526302,3497.6,3496.9,0.01364216]
[1641438926042,0.15526302,3497.6,3496.7,0.01477901]
[1641438926245,1.13507895,3497.2,3496.7,0.01477901]
[1641438926441,1.13507895,3497.2,3496.5,0.36091586]
[1641438926640,1.13507895,3497.2,3496.6,0.01534743]
[1641438927041,1.13507895,3497.2,3496.6,1.15894883]
[1641438927240,1.13507895,3497.2,3496.6,0.01534743]
[1641438927241,2.47397258,3497.1,3496.6,0.01534743]
[1641438927447,3.18895258,3497.1,3496.7,0.01477901]
[1641438927645,3.18895258,3497.1,3496.0,0.01875797]
[1641438927646,1.37788012,3496.4,3496.0,0.01875797]
[1641438927946,7.6035,3497.0,3495.9,0.0193264]
[1641438928149,2.4849332,3496.9,3495.9,0.0193264]
[1641438928343,2.4849332,3496.9,3495.6,1.66265292]
[1641438928344,2.4849332,3496.9,3495.7,0.02046324]
[1641438928748,2.4849332,3496.9,3495.7,1.16434154]
[1641438929191,3.1999532,3496.9,3495.8,0.01989482]
[1641438929392,2.4849332,3496.9,3495.8,0.01989482]
[1641438929592,2.4849332,3496.9,3495.7,0.89244644]
[1641438929799,1.23203072,3496.0,3495.8,0.01989482]
[1641438930998,5.61290046,3495.9,3495.8,0.01989482]
[1641438931199,5.62289681,3495.9,3495.7,0.02046324]
[1641438931406,9.11991319,3495.8,3495.3,0.02273694]
[1641438931599,9.11991319,3495.8,3495.0,0.02444221]
[1641438931797,9.11991319,3495.8,3494.4,0.02785275]
[1641438931798,1.41947522,3495.2,3494.4,0.02785275]
[1641438931998,1.41947522,3495.2,3494.2,3.20718981]
[1641438931999,1.41947522,3495.2,3494.3,0.02842117]
[1641438932842,1.41947522,3495.2,3494.2,0.0289896]
[1641438933246,1.41947522,3495.2,3493.8,0.3524896]
[1641438933448,4.9002,3495.6,3493.9,0.00170527]
[1641438933449,1.51698479,3494.6,3493.9,0.00170527]
[1641438933748,0.00170527,3494.5,3493.9,0.00170527]
[1641438934247,1.51698479,3494.6,3493.9,0.00170527]
[1641438934248,0.00113685,3494.4,3493.9,0.00170527]
[1641438934648,0.00170527,3494.5,3493.9,0.00170527]
[1641438935048,0.00113685,3494.4,3493.9,0.57396047]
[1641438935347,0.00090527,3494.5,3494.0,0.00193684]
[1641438935748,0.15526302,3494.2,3494.0,0.00193684]
[1641438936387,0.15526302,3494.2,3494.1,7.795]
[1641438936591,0.15526302,3494.2,3494.1,9.095]
[1641438936787,0.15526302,3494.2,3494.1,9.39636842]
[1641438936987,0.15526302,3494.2,3494.1,1.94636842]
[1641438937188,0.15526302,3494.2,3494.1,4.27995813]
[1641438937389,0.15526302,3494.2,3494.1,3.27995813]
[1641438937589,0.15526302,3494.2,3494.1,4.27995813]
[1641438937798,0.15526302,3494.2,3494.1,6.57995813]
[1641438937993,0.15526302,3494.2,3494.1,7.57995813]
[1641438938398,6.302e-05,3494.2,3494.1,7.68715813]
[1641438938600,3.6753,3495.7,3494.3,1.0]
[1641438938794,3.6753,3495.7,3494.9,0.71501]
[1641438938995,0.00568424,3495.5,3495.0,0.345]
[1641438939395,0.00511581,3495.4,3495.0,1.80654296]
[1641438939594,0.00511581,3495.4,3495.0,2.80654296]
[1641438939798,0.00454739,3495.3,3495.0,2.91534296]
[1641438939996,0.00454739,3495.3,3495.0,1.645]
[1641438940245,1.14595236,3495.7,3495.0,0.345]
[1641438940246,0.00397897,3495.2,3495.0,0.345]
[1641438940747,0.00341054,3495.1,3495.0,0.345]
[1641438941345,0.00341054,3495.1,3494.6,1.1802]
[1641438941546,0.00341054,3495.1,3494.5,0.7554]
[1641438941748,0.00284212,3495.0,3494.7,0.5721502]
[1641438942149,0.0022737,3494.9,3494.7,0.5721502]
[1641438942349,0.0022737,3494.9,3494.5,0.345]
[1641438942648,0.00170527,3494.8,3494.5,0.345]
[1641438943050,0.00113685,3494.7,3494.5,0.345]
[1641438943451,1.24301165,3495.0,3494.5,0.345]
[1641438943452,0.0022737,3494.9,3494.5,0.345]
[1641438943888,0.00170527,3494.8,3494.5,0.345]
[1641438944294,0.00113685,3494.7,3494.1,1.20767369]
[1641438944490,0.00113685,3494.7,3494.1,0.00227369]
[1641438944690,1.24301165,3495.0,3494.2,0.00170527]
[1641438944691,0.0022737,3494.9,3494.2,0.00170527]
[1641438944892,1.47461442,3494.3,3493.9,0.00341054]
[1641438945893,1.47461442,3494.3,3493.8,2.31550725]
[1641438946095,1.47461442,3494.3,3493.9,0.00341054]
[1641438950145,1.25413361,3494.3,3494.0,0.00087951]
[1641438950549,1.25413361,3494.3,3494.1,0.00227369]
[1641438950947,0.00170527,3494.8,3494.1,0.00227369]
[1641438951396,3.845,3495.2,3494.1,0.00227369]
[1641438951397,0.00113685,3494.7,3494.1,0.00227369]
[1641438951799,0.00341054,3495.1,3494.1,0.00227369]
[1641438952008,1.24591504,3494.7,3494.1,0.00227369]
[1641438955644,1.96132504,3494.7,3494.1,0.00227369]
[1641438956246,1.24591504,3494.7,3494.2,1.11128422]
[1641438956449,1.24591504,3494.7,3494.1,0.00227369]
[1641438956647,1.24591504,3494.7,3494.3,0.00113684]
[1641438956852,1.24591504,3494.7,3494.1,0.00227369]
[1641438957052,0.3,3494.6,3494.1,0.00227369]
[1641438957254,1.24591504,3494.7,3494.1,0.00227369]
[1641438957452,0.71544,3494.6,3494.1,0.00227369]
[1641438957851,0.71543,3494.5,3494.1,0.00227369]
[1641438959087,1.24591504,3494.7,3494.1,0.00227369]
[1641438959894,3.57596785,3494.7,3494.1,0.00227369]
[1641438960097,4.29136785,3494.7,3494.1,0.00227369]
[1641438960295,1.73259724,3494.7,3494.1,0.00227369]
[1641438960494,1.24591504,3494.7,3494.2,0.00083858]
[1641438960902,1.24591504,3494.7,3494.3,0.00113684]
[1641438961298,1.96132504,3494.7,3494.3,0.00113684]
[1641438961497,2.36677494,3494.6,3494.3,0.00113684]
[1641438961698,0.71543,3494.5,3494.3,0.00113684]
[1641438963244,0.66543,3494.5,3494.3,0.00113684]
[1641438965344,1.24591504,3494.7,3494.3,0.00113684]
[1641438968298,1.96131504,3494.7,3494.3,0.00113684]
[1641438968798,2.36767039,3494.6,3494.3,0.00113684]
[1641438969197,4.01267039,3494.6,3494.3,0.00113684]
[1641438969395,8.11544,3494.5,3494.2,0.00083858]
[1641438969596,3.98111458,3494.4,3494.2,0.00083858]
[1641438969797,7.9,3494.2,3492.7,0.90765587]
[1641438970000,0.7158,3493.6,3492.7,0.90765587]
[1641438970245,0.7158,3493.6,3491.8,0.14048999]
[1641438970246,1.4316252,3493.4,3491.8,0.14048999]
[1641438970448,3.09691458,3493.6,3491.7,6.17]
[1641438970449,0.71585,3493.1,3491.7,6.17]
[1641438970645,0.71585,3493.1,3491.9,0.00511581]
[1641438970849,0.00113685,3493.0,3491.9,0.00511581]
[1641438971245,0.00113685,3493.0,3491.8,0.00101867]
[1641438971450,0.71598,3492.2,3491.8,0.00101867]
[1641438971647,2.72611458,3492.3,3491.8,0.00101867]
[1641438971849,0.6,3492.1,3491.8,0.00101867]
[1641438972147,0.13819997,3492.0,3491.8,0.00101867]
[1641438972347,0.13819997,3492.0,3491.0,0.01023162]
[1641438972348,7.745,3491.9,3491.0,0.01023162]
[1641438972550,1.4326401,3491.3,3491.0,0.01023162]
[1641438972748,7.4,3491.0,3489.7,6.17]
[1641438973051,7.4,3491.0,3490.8,0.00113684]
[1641438973052,7.7,3491.0,3490.8,0.00113684]
[1641438973452,7.7,3491.0,3489.4,0.00331723]
[1641438973453,0.71639,3490.3,3489.5,0.00852635]
[1641438973653,0.71642,3490.0,3489.5,0.00852635]
[1641438973910,0.3,3489.9,3489.5,0.00852635]
[1641438974895,1.37997645,3490.2,3489.5,0.00852635]
[1641438975094,1.37997645,3490.2,3489.3,6.17]
[1641438975294,0.00341054,3490.1,3489.3,6.17]
[1641438975598,0.345,3491.4,3489.9,1.09386307]
[1641438975599,0.00284212,3490.0,3489.9,1.09386307]
[1641438976294,0.00284212,3490.0,3489.9,7.19386307]
[1641438976494,0.00284212,3490.0,3489.9,1.39386307]
[1641438976693,0.00284212,3490.0,3489.9,0.3]
[1641438977093,0.00284212,3490.0,3489.4,1.0]
[1641438977294,0.00284212,3490.0,3489.4,1.3]
[1641438977495,0.00227369,3489.9,3489.4,1.3]
[1641438977745,0.00147369,3489.9,3489.4,2.4606668]
[1641438977946,0.00090527,3489.8,3489.4,1.3]
[1641438978349,0.00374739,3490.3,3489.4,1.3]
[1641438978550,0.00374739,3490.3,3489.3,6.17]
[1641438978751,0.00317896,3490.2,3489.3,6.17]
[1641438979052,1.23483542,3489.9,3489.4,0.00136842]
[1641438979552,0.00090527,3489.8,3489.4,0.00136842]
[1641438979953,0.71733527,3489.8,3489.4,0.00136842]
[1641438980153,0.00090527,3489.8,3489.4,0.00136842]
[1641438980355,0.00090527,3489.8,3489.1,1.28355557]
[1641438980759,0.00090527,3489.8,3489.2,0.00250527]
[1641438981596,0.00090527,3489.8,3489.3,0.001302]
[1641438982098,0.00090527,3489.8,3489.5,1.4812987]
[1641438984400,0.00090527,3489.8,3489.3,0.001302]
[1641438985269,0.00090527,3489.8,3489.4,31.51262251]
[1641438985669,0.00090527,3489.8,3489.5,0.12]
[1641438985872,0.00090527,3489.8,3489.5,1.4666]
[1641438986072,0.00090527,3489.8,3489.6,1.4623092]
[1641438986269,0.00090527,3489.8,3489.6,1.5743092]
[1641438986470,0.00090527,3489.8,3489.6,1.8735092]
[1641438986669,0.00090527,3489.8,3489.7,7.5096]
[1641438986874,0.00090527,3489.8,3489.7,7.4]
[1641438987176,0.00090527,3489.8,3489.7,8.4]
[1641438987378,0.00090527,3489.8,3489.7,8.5096]
[1641438987576,0.00090527,3489.8,3489.7,9.1554]
[1641438987778,0.00090527,3489.8,3489.7,77.5594]
[1641438987977,0.00090527,3489.8,3489.7,27.3602]
[1641438988179,0.00090527,3489.8,3489.7,11.9594]
[1641438988381,0.00090527,3489.8,3489.7,11.9554]
[1641438988578,0.00090527,3489.8,3489.7,9.1546]
[1641438988777,0.00090527,3489.8,3489.7,9.1554]
[1641438988997,0.00090527,3489.8,3489.7,10.1554]
[1641438989197,0.00090527,3489.8,3489.7,10.1546]
[1641438989802,0.00090527,3489.8,3489.7,10.1554]
[1641438989999,0.00090527,3489.8,3489.7,10.1562]
[1641438990200,0.00090527,3489.8,3489.7,10.157]
[1641438990399,0.00090527,3489.8,3489.7,10.1586]
[1641438990802,0.00090527,3489.8,3489.7,10.1594]
[1641438991003,5.27e-06,3489.8,3489.7,10.1602]
[1641438991200,8.88712275,3492.6,3489.7,99.104732]
[1641438991201,0.01231773,3491.8,3489.7,99.104732]
[1641438991401,3.7925,3492.2,3490.5,1.5726673]
[1641438991602,0.00795793,3491.2,3490.6,4.08076106]
[1641438991904,3.7925,3492.2,3491.0,1.0]
[1641438991905,0.00738951,3491.1,3491.0,1.0]
[1641438992100,0.00738951,3491.1,3491.0,10.58179622]
[1641438992301,0.00738951,3491.1,3491.0,10.69939622]
[1641438992501,0.00738951,3491.1,3491.0,11.69459622]
[1641438992756,4.82653905,3493.1,3491.5,0.7156]
[1641438992954,4.82653905,3493.1,3492.1,1.0]
[1641438993152,4.82653905,3493.1,3492.2,7.745]
[1641438993153,0.00682108,3492.3,3492.2,7.745]
[1641438993357,0.00682108,3492.3,3492.2,7.8586]
[1641438993560,0.00682108,3492.3,3492.2,1.4586]
[1641438993759,0.00682108,3492.3,3492.2,0.345]
[1641438993760,1.51112427,3492.3,3492.2,0.345]
[1641438993957,1.51112427,3492.3,3491.4,1.345]
[1641438994159,1.51112427,3492.3,3491.4,0.345]
[1641438994457,0.00625265,3492.2,3491.4,0.645]
[1641438994859,1.50430319,3492.3,3491.4,0.645]
[1641438994860,0.00568423,3492.1,3491.4,0.645]
[1641438995261,0.00511581,3492.0,3491.4,0.345]
[1641438995660,0.00454738,3491.9,3490.8,0.345]
[1641438996063,0.00397896,3491.8,3491.1,0.1088]
[1641438996259,0.00397896,3491.8,3491.1,1.40255785]
[1641438996499,0.00341054,3491.7,3491.0,0.1096]
[1641438996700,0.00341054,3491.7,3491.1,1.31328665]
[1641438996898,1.3542412,3491.9,3491.1,1.31328665]
[1641438996899,0.00284211,3491.6,3491.1,1.31328665]
[1641438997100,0.00284211,3491.6,3491.1,1.42368665]
[1641438997297,0.00227369,3491.5,3491.1,1.31328665]
[1641438997699,0.71589,3492.4,3491.1,1.31328665]
[1641438997700,0.00170527,3491.4,3491.1,1.31328665]
[1641438998100,0.00113684,3491.3,3491.1,1.31328665]
[1641438998707,9.22185201,3493.0,3491.2,7.4]
[1641438999002,0.00397897,3492.0,3491.2,7.4]
[1641438999203,0.00397897,3492.0,3491.3,1.0]
[1641438999402,0.00341054,3491.9,3491.3,1.0]
[1641438999603,0.00341054,3491.9,3490.9,1.00113685]
[1641438999804,0.00284212,3491.8,3490.9,1.00113685]
[1641439000147,0.0022737,3491.7,3491.0,0.00170527]
[1641439000550,1.31194208,3491.6,3490.8,2.39793815]
[1641439000748,1.31194208,3491.6,3490.8,1.10307818]
[1641439000947,1.31194208,3491.6,3490.9,0.00227369]
[1641439000948,0.00113685,3491.5,3490.9,0.00227369]
[1641439001749,0.00113685,3491.5,3490.8,0.00284211]
[1641439002372,0.00113685,3491.5,3489.8,1.429]
[1641439002550,0.00341054,3491.4,3490.3,0.4562]
[1641439002749,0.00341054,3491.4,3489.9,1.429]
[1641439002750,0.71609,3491.3,3490.4,0.345]
[1641439002952,0.71893211,3491.3,3490.4,0.345]
[1641439003150,0.00227369,3491.2,3490.5,0.00170527]
[1641439003555,1.24666637,3490.8,3490.5,0.00170527]
[1641439003755,0.00170527,3491.1,3490.5,0.00170527]
[1641439004005,0.00227369,3491.2,3490.5,0.00170527]
[1641439004201,0.00113684,3491.0,3490.5,0.00170527]
[1641439004402,0.00170527,3491.1,3490.5,0.00170527]
[1641439004605,0.00397896,3491.5,3490.5,0.00170527]
[1641439004902,1.28357504,3491.1,3490.5,0.11050527]
[1641439005103,0.00341054,3491.4,3490.5,0.11530527]
[1641439005303,0.00113684,3491.0,3490.6,0.00113685]
[1641439005503,0.00284211,3491.3,3490.6,0.00113685]
[1641439005703,0.00511581,3491.7,3490.6,0.11473685]
[1641439005908,0.00227369,3491.2,3490.6,0.11473685]
[1641439006104,1.08812017,3491.3,3490.6,1.31700648]
[1641439006304,0.00170527,3491.1,3490.6,1.31780648]
[1641439006508,0.00227369,3491.2,3490.7,0.1104]
[1641439006707,0.70708815,3492.2,3490.8,7.4]
[1641439007006,0.00625266,3492.1,3490.8,7.80993685]
[1641439007206,1.22859099,3491.5,3490.9,1.0]
[1641439007651,0.0022737,3491.4,3490.9,1.0]
[1641439008050,0.00170527,3491.3,3490.9,1.0]
[1641439008255,0.00170527,3491.3,3490.9,1.3]
[1641439008456,0.00113685,3491.2,3490.9,1.3]
[1641439008656,0.00113685,3491.2,3490.9,0.3]
[1641439008857,0.0022737,3491.4,3490.9,1.3]
[1641439009062,0.0022737,3491.4,3490.9,0.3]
[1641439009263,0.00170527,3491.3,3490.9,0.4088]
[1641439009459,0.00170527,3491.3,3491.0,0.4706]
[1641439009659,0.00113685,3491.2,3491.1,2.9824487]
[1641439009859,4.98027969,3492.6,3491.2,7.4]
[1641439010058,4.98027969,3492.6,3491.6,1.0]
[1641439010363,0.0073895,3492.5,3491.7,0.645]
[1641439010559,0.0073895,3492.5,3491.7,0.761]
[1641439010758,0.00682108,3492.4,3491.8,0.112]
[1641439010958,0.00682108,3492.4,3491.9,0.345]
[1641439011158,1.18877969,3492.6,3491.9,0.345]
[1641439011159,0.00625266,3492.3,3491.9,0.345]
[1641439011620,0.00568423,3492.2,3491.9,0.345]
[1641439012014,0.00511581,3492.1,3491.9,0.345]
[1641439012414,0.00454739,3492.0,3491.9,0.345]
[1641439012820,0.00454739,3492.0,3491.9,6.295]
[1641439013016,0.00454739,3492.0,3491.9,7.295]
[1641439013422,0.00454739,3492.0,3491.9,7.29584341]
[1641439014218,0.00454739,3492.0,3491.9,52.69584341]
[1641439014417,0.00454739,3492.0,3491.9,20.19584341]
[1641439014817,0.00454739,3492.0,3491.9,14.89584341]
[1641439015016,0.00454739,3492.0,3491.9,11.19584341]
[1641439015254,0.00454739,3492.0,3491.9,9.79584341]
[1641439015455,0.00454739,3492.0,3491.9,7.29584341]
[1641439015957,0.00454739,3492.0,3491.9,7.40464341]
[1641439016358,0.00454739,3492.0,3491.9,7.40304341]
[1641439016762,0.00454739,3492.0,3491.9,7.29584341]
[1641439016960,0.00454739,3492.0,3491.9,7.40304341]
[1641439017561,0.00454739,3492.0,3491.9,67.60464341]
[1641439017759,0.00454739,3492.0,3491.9,67.20464341]
[1641439018261,0.00454739,3492.0,3491.9,67.20384341]
[1641439018904,0.00454739,3492.0,3491.9,75.20384341]
[1641439019102,0.00454739,3492.0,3491.9,31.55771091]
[1641439019305,0.00454739,3492.0,3491.9,40.05051091]
[1641439019502,0.00454739,3492.0,3491.9,50.65771091]
[1641439019703,0.00454739,3492.0,3491.9,44.15051091]
[1641439020103,0.00454739,3492.0,3491.9,43.55771091]
[1641439020302,0.00454739,3492.0,3491.9,41.80304341]
[1641439020502,0.00454739,3492.0,3491.9,41.69584341]
[1641439020706,0.00454739,3492.0,3491.9,41.80384341]
[1641439021211,0.00454739,3492.0,3491.9,41.69584341]
[1641439021814,0.00454739,3492.0,3491.9,36.69584341]
[1641439022012,0.00454739,3492.0,3491.9,1.45304341]
[1641439022211,0.00454739,3492.0,3491.9,0.00084341]
[1641439022653,0.00454739,3492.0,3491.3,1.91106837]
[1641439022856,0.00454739,3492.0,3491.1,0.1088]
[1641439023055,0.00397896,3491.9,3491.1,0.1088]
[1641439023259,1.21234103,3491.4,3491.1,0.1072]
[1641439023459,1.21234103,3491.4,3490.9,0.1096]
[1641439023661,1.21234103,3491.4,3490.8,0.10913685]
[1641439023860,1.21234103,3491.4,3490.5,0.90113685]
[1641439024260,1.21234103,3491.4,3491.0,0.00085229]
[1641439024261,0.00170527,3491.3,3491.0,0.00085229]
[1641439024464,1.43600944,3491.2,3491.0,0.00085229]
[1641439024661,1.43714629,3491.2,3491.0,0.00085229]
[1641439027818,1.73714629,3491.2,3491.0,0.00085229]
[1641439028216,9.93769937,3491.1,3491.0,0.00085229]
[1641439030185,9.95038605,3491.1,3491.0,0.00085229]
[1641439031378,2.55038605,3491.1,3491.0,0.00085229]
[1641439031581,0.01268668,3491.1,3491.0,0.00085229]
[1641439032177,1.73714629,3491.2,3491.0,0.00085229]
[1641439032178,1.43714629,3491.2,3491.0,0.00085229]
[1641439032380,5.0,3491.1,3491.0,0.00085229]
[1641439034008,4.95,3491.1,3491.0,0.00085229]
[1641439034808,7.41422851,3491.1,3491.0,0.00085229]
[1641439035708,7.71422851,3491.1,3491.0,0.00085229]
[1641439036107,5.25,3491.1,3491.0,0.00085229]
[1641439037964,7.68731656,3491.1,3491.0,0.00085229]
[1641439039161,5.25,3491.1,3491.0,0.00085229]
[1641439039361,7.70082054,3491.1,3491.0,0.00085229]
[1641439039765,5.25,3491.1,3491.0,0.00085229]
[1641439040164,7.66137203,3491.1,3491.0,0.00085229]
[1641439040364,7.68490743,3491.1,3491.0,0.00085229]
[1641439043913,5.25,3491.1,3491.0,0.00085229]
[1641439044112,7.65204799,3491.1,3491.0,0.00085229]
[1641439044313,7.69777226,3491.1,3491.0,0.00085229]
[1641439044514,12.6,3491.1,3491.0,0.00085229]
[1641439044914,12.9,3491.1,3491.0,0.00085229]
[1641439045156,13.9,3491.1,3491.0,0.00085229]
[1641439045556,13.9,3491.1,3490.6,0.00227369]
[1641439045557,7.35,3491.0,3490.6,0.00227369]
[1641439045754,2.149015,3490.9,3490.6,0.00227369]
[1641439045954,2.149015,3490.9,3489.7,0.0073895]
[1641439046154,0.3,3490.8,3489.6,0.39732246]
[1641439046355,2.51593905,3490.7,3489.6,0.39732246]
[1641439046555,2.52162328,3490.7,3489.6,0.39732246]
[1641439046754,1.47111886,3490.6,3489.6,0.39732246]
[1641439046956,0.7163299,3490.1,3489.6,0.39732246]
[1641439047156,1.414451,3489.7,3489.6,0.39732246]
[1641439049014,1.414451,3489.7,3488.9,3.40145149]
[1641439049209,1.714451,3489.7,3488.9,3.40145149]
[1641439049410,1.714451,3489.7,3489.0,0.00397897]
[1641439049411,3.5825481,3489.5,3489.0,0.00397897]
[1641439049610,0.3,3489.3,3489.0,0.00397897]
[1641439049809,3.8825481,3489.5,3489.0,0.00397897]
[1641439050209,3.5825481,3489.5,3489.0,0.00397897]
[1641439050411,0.71652,3489.2,3489.0,0.00397897]
[1641439050609,1.50333565,3489.1,3489.0,0.00397897]
[1641439054965,1.81568419,3489.1,3488.9,1.74570506]
[1641439055166,7.35,3489.0,3488.9,1.74570506]
[1641439055364,7.35,3489.0,3488.9,1.49890506]
[1641439055763,7.35,3489.0,3488.9,1.49997046]
[1641439057218,7.35,3489.0,3488.9,1.41567046]
[1641439057410,8.00658237,3489.0,3488.9,1.41567046]
[1641439058016,0.65658237,3488.7,3488.5,0.001]
[1641439058217,8.00658237,3488.6,3488.5,0.001]
[1641439058415,7.35,3488.5,3487.7,3.61917494]
[1641439058618,0.66921805,3488.4,3487.7,3.46917494]
[1641439058815,0.65658237,3488.3,3487.8,0.00682108]
[1641439059014,2.80732087,3488.3,3487.8,0.00682108]
[1641439059313,0.65658237,3488.0,3487.8,0.00682108]
[1641439059514,9.10289261,3487.9,3487.8,0.00682108]
[1641439059913,1.75289261,3487.9,3487.8,0.00682108]
[1641439060157,0.65658237,3487.9,3487.8,0.00682108]
[1641439062758,0.65658237,3487.9,3487.7,3.46252599]
[1641439062759,0.65658237,3487.8,3487.7,3.46252599]
[1641439064806,0.65658237,3487.8,3487.7,0.40242599]
[1641439064807,8.05658237,3487.8,3487.7,0.40242599]
[1641439065007,0.95658237,3487.8,3487.7,0.40242599]
[1641439065208,5.35658237,3487.8,3487.7,0.40242599]
[1641439065609,0.95658237,3487.8,3487.7,0.40242599]
[1641439065808,0.65658237,3487.8,3487.7,0.40242599]
[1641439066415,0.65658237,3487.8,3487.7,0.40353737]
[1641439071169,0.65658237,3487.8,3487.7,7.10353737]
[1641439071407,0.65658237,3487.8,3487.7,8.49069108]
[1641439071607,0.65658237,3487.8,3487.7,9.79069108]
[1641439071807,0.65658237,3487.8,3487.7,2.79069108]
[1641439072004,0.65658237,3487.8,3487.7,3.09069108]
[1641439072706,0.65658237,3487.8,3487.7,0.40353737]
[1641439073315,0.65658237,3487.8,3487.5,0.4635]
[1641439073517,6.70658237,3487.6,3487.5,0.4635]
[1641439073711,0.65658237,3487.6,3487.5,0.4635]
[1641439073909,0.95658237,3487.6,3487.5,0.4635]
[1641439074109,0.65658237,3487.6,3487.5,0.4635]
[1641439076556,4.95,3489.0,3487.5,7.65]
[1641439076755,4.95,3489.0,3487.5,35.495]
[1641439077058,0.00625266,3488.9,3487.6,0.12054531]
[1641439077256,0.00625266,3488.9,3487.7,0.345]
[1641439077458,0.00568424,3488.8,3488.2,0.7163589]
[1641439077656,0.00568424,3488.8,3488.4,1.07491961]
[1641439077856,0.00511581,3488.7,3488.5,0.345]
[1641439078054,0.00511581,3488.7,3488.5,0.453]
[1641439078257,4.95,3489.0,3488.5,0.453]
[1641439078258,0.00454739,3488.6,3488.5,0.453]
[1641439078559,0.00454739,3488.6,3488.5,1.39249776]
[1641439079102,0.00454739,3488.6,3488.5,4.44249776]
[1641439079507,0.00454739,3488.6,3488.5,5.44249776]
[1641439079906,0.00454739,3488.6,3488.2,1.0]
[1641439080108,0.00454739,3488.6,3487.6,0.11094531]
[1641439080307,4.95,3489.0,3487.6,0.00214531]
[1641439080308,0.00397897,3488.5,3487.6,0.00214531]
[1641439080711,0.00341054,3488.4,3487.6,0.00214531]
[1641439081211,0.00284212,3488.3,3487.6,0.00214531]
[1641439081614,1.58026629,3488.5,3487.6,0.00214531]
[1641439081615,0.0022737,3488.2,3487.6,0.00214531]
[1641439082011,1.28026629,3488.5,3487.7,1.26336499]
[1641439082012,0.00170527,3488.1,3487.7,1.26336499]
[1641439082412,1.28026629,3488.5,3487.7,1.26336499]
[1641439082413,0.00113685,3488.0,3487.7,1.26336499]
[1641439082967,0.00341054,3488.4,3487.7,1.26336499]
[1641439083168,0.00341054,3488.4,3487.6,0.00214531]
[1641439083370,0.00284212,3488.3,3487.6,0.00214531]
[1641439083570,1.4337,3488.1,3487.6,0.00214531]
[1641439083767,2.74882026,3488.0,3487.6,0.00214531]
[1641439083967,2.74995711,3488.0,3487.6,0.00214531]
[1641439084168,1.1563033,3487.9,3487.6,0.00214531]
[1641439084368,3.08321209,3487.8,3487.6,0.00214531]
[1641439084568,3.38321209,3487.8,3487.6,0.00214531]
[1641439084969,1.01692,3487.8,3487.6,0.00214531]
[1641439085170,3.35033936,3487.8,3487.6,0.00214531]
[1641439085369,5.4787116,3487.7,3487.6,0.00214531]
[1641439085769,3.15,3487.7,3487.6,0.00214531]
[1641439085971,9.24756193,3487.7,3487.6,0.00214531]
[1641439086171,9.24756193,3487.7,3486.7,0.01]
[1641439086172,7.35,3487.6,3486.7,0.01]
[1641439086416,0.71705,3487.4,3486.7,0.01]
[1641439086602,0.71705,3487.4,3487.2,0.00227369]
[1641439086603,1.73409,3487.4,3487.2,0.00227369]
[1641439087010,8.71010869,3487.3,3487.2,0.00227369]
[1641439087414,7.35,3487.2,3486.7,0.01]
[1641439087610,1.4344772,3487.0,3486.7,0.01]
[1641439087812,1.4344772,3487.0,3486.8,0.00227369]
[1641439088014,1.4344772,3487.0,3484.8,1.50209228]
[1641439088015,1.25610736,3485.6,3484.8,1.50209228]
[1641439088212,1.25610736,3485.6,3484.7,0.66112985]
[1641439088414,1.20610736,3485.6,3484.7,0.5719299]
[1641439088610,0.71731,3485.2,3484.7,0.5719299]
[1641439088812,0.71731,3485.2,3485.1,6.15792115]
[1641439089014,0.00113685,3485.1,3484.7,0.5719299]
[1641439089212,0.30170527,3485.2,3484.7,0.5719299]
[1641439089412,0.00113685,3485.1,3484.7,0.5719299]
[1641439090763,0.71751,3485.0,3484.7,0.5719299]
[1641439091164,0.71751,3485.0,3484.9,1.11484936]
[1641439091366,0.71751,3485.0,3484.7,0.5719299]
[1641439092264,0.717543,3484.9,3484.7,0.5719299]
[1641439092469,2.12539296,3484.9,3484.7,2.99e-05]
[1641439092664,1.017543,3484.9,3484.7,2.99e-05]